Cogmind - Beta 16.1 @@@ ROGUE MODE // 2026.02.20 @ 17:04:06 Player: Skergy Result: Destroyed by Autobeam Turret with Autobeam Performance ------------- Evolutions (0) 0 Regions Visited (2) 400 Robots Destroyed (26) 130 Value Destroyed (618) 618 Prototype IDs (13) 260 Alien Tech Used (0) 0 Bonus (0) 0 TOTAL SCORE: 1408 Bonus ------- None Cogmind --------- Core Integrity 0/250 Matter 300/300 Energy 124/160 System Corruption 0% Temperature Warm (174) Movement Treading (260) Ox1 Location -10/Subcaves Parts ------- > --- POWER (1) -------- Light Nuclear Core > --- PROPULSION (2) --- Spiked Treads > --- UTILITY (2) ------ Large Storage Unit Medium Armor Plating > --- WEAPON (2) ------- Subdweller Laser Subdweller Laser > --- INVENTORY (15) --- Subdweller Monowheel Medium Matter Pod (100) Medium Matter Pod (100) ECM Suite Light Armor Plating Tractor Beam Subdweller Laser Battle Rifle 1B-0RG's Assimilator Datajack Mining Laser Peak State ------------ > --- POWER ------------ Light Nuclear Core > --- PROPULSION ------- Spiked Treads Spiked Treads > --- UTILITY ---------- Large Storage Unit Power Bank > --- WEAPON ----------- Subdweller Laser Subdweller Laser > --- INVENTORY -------- Subdweller Monowheel Medium Matter Pod Medium Matter Pod ECM Suite Medium Armor Plating Tractor Beam Subdweller Laser Battle Rifle 1B-0RG's Assimilator Datajack Mining Laser [Rating: 28] Favorites ----------- Power Light Nuclear Core Engine Subdweller Power Source Power Core Light Nuclear Core Propulsion Spiked Treads Treads Spiked Treads Leg Aluminum Leg Utility Large Storage Unit Device Power Bank Storage Large Storage Unit Protection Medium Armor Plating Weapon Assault Rifle Energy Gun Subdweller Laser Ballistic Gun Assault Rifle Special Weapon Mining Laser Build | -11 -10 -10 ------- Run | Yrd Mat Sub Slots Evolved . | . . . Power . | . . . Propulsion . | . . . Utility . | . . . Weapon . | . . . Parts Attached 24 | 7 2 15 Power 6 | 1 1 4 Engine 4 | 1 1 2 Core 2 | . . 2 Reactor . | . . . Propulsion 5 | 2 . 3 Treads 4 | 2 . 2 Leg 1 | . . 1 Wheel . | . . . Hover . | . . . Flight . | . . . Utility 5 | 2 1 2 Device 2 | 1 . 1 Storage 2 | 1 1 . Processor . | . . . Hackware . | . . . Protection 1 | . . 1 Artifact . | . . . Weapon 8 | 2 . 6 Energy Gun 4 | . . 4 Energy Cannon . | . . . Ballistic Gun 3 | 2 . 1 Ballistic Cannon . | . . . Launcher . | . . . Special Weapon 1 | . . 1 Impact Weapon . | . . . Slashing Weapon . | . . . Piercing Weapon . | . . . Special Melee Weapon . | . . . Unidentified Prototypes 1 | . . 1 Parts Lost 7 | . 1 6 Power 2 | . 1 1 Propulsion 3 | . . 3 Utility . | . . . Weapon 2 | . . 2 Highest Loss Streak 3 | . 1 3 To Critical Strikes . | . . . Average Backups 12 | 3 9 14 Power 1 | . 1 1 Propulsion 2 | 1 2 2 Utility 5 | . 2 6 Weapon 3 | 1 3 3 Tool/Special . | . . . Unused Backups 15 | . . 15 Power . | . . . Propulsion 4 | . . 4 Utility 5 | . . 5 Weapon 4 | . . 4 Tool/Special 2 | . . 2 Average Slot Usage (%) 89 | . 100 84 Engine 11 | . 14 10 Core 5 | . . 7 Treads 23 | . 28 21 Device 11 | . 14 10 Storage 12 | . 14 11 Energy Gun 8 | . . 12 Ballistic Gun 13 | . 28 6 Special Weapon 2 | . . 2 Peak Build Rating 28 | 7 9 28 Average Rating 16 | 5 7 20 On Entrance 5 | . 7 9 Avg Prop Armor Cover (%) . | . . . Naked Turns . | . . . Heaviest Build 41 | 13 30 41 Greatest Support 40 | 40 40 40 Greatest Overweight (x) 2 | . . 2 Average Overweight (x) . | . . . Largest Inventory Capacity 15 | 8 15 15 Average Capacity 14 | 7 13 15 Most Carried 15 | 5 15 15 Average Carried 12 | 3 9 14 Final Capacity 15 | 8 15 15 Final Carried 15 | 5 15 15 Class Distribution -------------------- 83% | Mutant 16% | Scavenger-Mutant Dominant Class ---------------- Mutant | -10/Materials Mutant | -10/Subcaves Resources | -11 -10 -10 ----------- Run | Yrd Mat Sub Matter Collected 1089 | 360 252 477 Remotely . | . . . Salvage Created 869 | 104 329 436 Parts 57 | 9 21 27 Haulers Intercepted . | . . . Recyclers Shooed 1 | . 1 . Parts Field Recycled . | . . . Retrieved Matter . | . . . Parts Self-Destructed 17 | . . 17 Prevented . | . . . Parts Restored . | . . . Kills | -11 -10 -10 ------- Run | Yrd Mat Sub Combat Hostiles Destroyed 18 | . 6 12 Guns 18 | . 6 12 Classes Destroyed 9 | 2 3 4 Worker 1 | . 1 . Builder 1 | . 1 . Tunneler 4 | 4 . . Recycler 1 | 1 . . Turret 1 | . . 1 Swarmer 6 | . . 6 Grunt 6 | . 6 . Sentry 1 | . . 1 Subdweller 5 | . . 5 Best Kill Streak 3 | 3 2 3 Combat Bots Only 3 | . 2 3 Max Kills in Single Turn 1 | 1 1 1 Gunslinging . | . . . Exploded . | . . . Melee . | . . . Uniques/NPCs Destroyed . | . . . Combat | -11 -10 -10 -------- Run | Yrd Mat Sub Hostile Shots Fired 174 | . 31 143 Missed 54 | . 4 50 Hits 120 | . 27 93 Projectile 120 | . 27 93 Critical Strikes 3 | . 1 2 Damage Taken 1605 | . 437 1168 Core 256 | . 48 208 Absorbed by Shields . | . . . Core Remaining (%) 100 | 100 . . Volleys Fired 107 | 15 41 51 Largest 2 | 2 2 2 Hottest 120 | 40 40 120 Shots Fired 197 | 30 82 85 Gun 183 | 30 82 71 Cannon . | . . . Launcher . | . . . Special 14 | . . 14 Kinetic 143 | 30 82 31 Thermal 54 | . . 54 Explosive . | . . . Electromagnetic . | . . . Robot Hit Streak 13 | 11 12 13 Robot Miss Streak 7 | 2 7 2 Penetration Max . | . . . Secondary Targets 4 | . 1 3 Max Gunslinging Chain 1 | . 1 1 Shots Hit Robots 117 | 21 45 51 Core Hits 45 | 6 19 20 Critical Kills . | . . . Critical Parts Destroyed . | . . . Critical Strikes . | . . . Melee Attacks . | . . . Impact . | . . . Slashing . | . . . Piercing . | . . . Sneak Attacks . | . . . Combat Hostiles . | . . . Follow-up Attacks . | . . . Damage Inflicted 1680 | 262 616 802 Guns 1680 | 262 616 802 Cannons . | . . . Explosions . | . . . Melee . | . . . Ramming . | . . . Kinetic 1213 | 262 616 335 Thermal 467 | . . 467 Explosive . | . . . Electromagnetic . | . . . Impact . | . . . Slashing . | . . . Piercing . | . . . Highest Corruption . | . . . Average Corruption . | . . . Corruption Purged . | . . . Corruption Blocked . | . . . Overload Shots . | . . . Overflow Damage . | . . . Projectiles . | . . . Explosions . | . . . Melee . | . . . Knockbacks . | . . . Impact . | . . . Kinetic . | . . . Secondary . | . . . Self-Inflicted Damage . | . . . Shots . | . . . Rammed . | . . . Targets Rammed . | . . . Kicked . | . . . Crushed . | . . . Highest Temperature 168 | . 9 168 Average Temperature 30 | . 2 43 Received Heat Transfer 600 | . 234 366 Siege Activations . | . . . Martial Activations . | . . . Shielding Activations . | . . . Robots Disrupted . | . . . Combat Hostiles . | . . . Robots Corrupted . | . . . Combat Hostiles . | . . . Parts Fried . | . . . Impact Corruptions . | . . . Robots Melted . | . . . Combat Hostiles . | . . . Parts Melted 2 | . . 2 Heat Transferred 660 | . . 660 Parts Sabotaged . | . . . Parts Stolen . | . . . Parts Stripped . | . . . Power Chain Reactions . | . . . Alert | -11 -10 -10 ------- Run | Yrd Mat Sub Maximum Alert Level . | . . . Low Security (%) 100 | 100 100 . Level 1 . | . . . Level 2 . | . . . Level 3 . | . . . Level 4 . | . . . Level 5 . | . . . High Security . | . . . Max Security . | . . . Peak Influence 66 | 10 66 . Initial . | . . . Average 9 | 1 11 . Influence Increases 415 | 25 160 230 Destroy 0b10 Robot/C 280 | . 120 160 Destroy 0b10 Robot/NC 35 | 25 10 . Destroy Leader 40 | . 30 10 Lose Combat Pursuer 60 | . . 60 Influence Decreases 315 | 25 160 130 Time Decay 285 | 25 150 110 Lost Part 30 | . 10 20 Squads Dispatched 1 | . 1 . Investigation . | . . . Extermination . | . . . Reinforcement 1 | . 1 . Assault . | . . . Garrison . | . . . Intercept . | . . . Searches Triggered . | . . . Construction Impeded . | . . . Haulers Reinforced . | . . . Active Scanning Responses . | . . . Cargo Convoy Interrupts . | . . . Stealth | -11 -10 -10 --------- Run | Yrd Mat Sub Distress Signals . | . . . Communications Jammed . | . . . Distress Signals . | . . . Times Spotted 30 | . 14 16 Peak Tracking Total 6 | . 3 6 Tactical Retreats 2 | . . 2 Traps | -11 -10 -10 ------- Run | Yrd Mat Sub Traps Triggered 5 | . 2 3 Indirectly . | . . . Trap Hack Attempts . | . . . Triggered . | . . . Disarmed . | . . . Reprogrammed . | . . . Reused . | . . . Traps Extracted . | . . . Installed . | . . . Triggered . | . . . Machines | -11 -10 -10 ---------- Run | Yrd Mat Sub Machines Disabled . | . . . Max in Single Turn . | . . . Machines Repaired . | . . . Machines Dismantled . | . . . Machines Sabotaged . | . . . Overloaded Fab Kills . | . . . Hacking | -11 -10 -10 --------- Run | Yrd Mat Sub Machines Accessed 6 | . 4 2 Terminals 3 | . 3 . Fabricators . | . . . Repair Stations . | . . . Recycling Units 1 | . 1 . Scanalyzers . | . . . Garrison Access . | . . . Total Hacks 15 | . 11 4 Successful 6 | . 2 4 Failed 9 | . 9 . Catastrophic 1 | . 1 . Database Lockouts . | . . . Manual 11 | . 11 . Terminals 7 | . 7 . Fabricators . | . . . Repair Stations . | . . . Recycling Units 4 | . 4 . Scanalyzers . | . . . Garrison Access . | . . . Terminal Hacks 4 | . . 4 Record 3 | . . 3 Proto ID Catalog 1 | . . 1 Fabricator Hacks . | . . . Repair Station Hacks . | . . . Recycling Unit Hacks . | . . . Scanalyzer . | . . . Garrison Access Hacks . | . . . Unauthorized Hacks 2 | . 2 . Terminals 1 | . 1 . Botnet 1 | . 1 . Fabricators . | . . . Repair Stations . | . . . Recycling Units 1 | . 1 . Mask 1 | . 1 . Scanalyzers . | . . . Garrison Access . | . . . Data Cores Recovered . | . . . Used . | . . . Hacking Detections 4 | . 4 . Full Trace Events . | . . . Feedback Events . | . . . Feedback Blocked . | . . . Robot Schematics Acquired . | . . . Robots Built . | . . . Authchips . | . . . Time . | . . . Total Robot Build Rating . | . . . Part Schematics Acquired . | . . . Parts Built . | . . . Authchips . | . . . Time . | . . . Total Part Build Rating . | . . . Part Studies Acquired . | . . . Parts Repaired . | . . . Time . | . . . Parts Recycled . | . . . Recycled Matter . | . . . Retrieved Matter . | . . . Retrieved Components . | . . . Parts Scanalyzed . | . . . Part Schematics Acquired . | . . . Parts Damaged . | . . . Bothacking | -11 -10 -10 ------------ Run | Yrd Mat Sub Used RIF Installer . | . . . Robots Hacked . | . . . Non-combat . | . . . Combat . | . . . Robot Hacks Applied . | . . . Relay Couplers Released . | . . . Fabnet Peak Effective % . | . . . Robots Rewired . | . . . Allies Hacked . | . . . Hacks Repelled . | . . . Allies | -11 -10 -10 -------- Run | Yrd Mat Sub Total Allies . | . . . Largest Group . | . . . Highest-Rated Group . | . . . Highest-Rated Ally . | . . . Total Orders . | . . . Ally Attacks . | . . . Total Damage . | . . . Kills . | . . . Allies Corrupted . | . . . Allies Melted . | . . . Intel | -11 -10 -10 ------- Run | Yrd Mat Sub Active Infowar (turns) 1431 | 39 953 439 Seismic 1431 | 39 953 439 Robot Analysis Total . | . . . Derelict Logs Recovered . | . . . Drone Launches . | . . . Drone Recoveries . | . . . Exploration | -11 -10 -10 ------------- Run | Yrd Mat Sub Turns Passed 3242 | 166 953 2123 Spaces Moved 1589 | 71 490 1028 Core 6 | 6 . . Treads 1582 | 65 490 1027 Legs 1 | . . 1 Wheels . | . . . Hover . | . . . Flight . | . . . Fastest Speed 50 | 50 160 160 Average Speed 176 | 150 160 185 Slowest Speed 260 | 160 160 260 Overloaded Moves . | . . . Propulsion Burnouts . | . . . Robots Hopped . | . . . Potential Cave-ins 3 | . . 3 Cave-ins Triggered . | . . . Exploration Rate (%) 51 | 5 72 76 Regions Visited 2 Branch Regions 1 Pre-discovered Areas 1 | . . 1 Known Exits Taken . | . . . Unknown Exits Taken 2 | 1 1 . Scrap Searched 2 | . . 2 Spaces Dug 9 | . . 9 Terrain Destroyed 9 | . . 9 Melee . | . . . Projectile 9 | . . 9 AOE . | . . . Terrain Rammed . | . . . Walls Destroyed . | . . . Machines Disabled . | . . . Actions | -11 -10 -10 --------- Run | Yrd Mat Sub Total 1810 | 97 577 1136 Wait 42 | . 33 9 Move 1587 | 70 489 1028 Hop . | . . . Pick Up 26 | 5 11 10 Fast Attach 11 | 7 . 4 Attach 6 | . 1 5 Detach 3 | . . 3 Swap 11 | . 1 10 Drop 17 | . 1 16 Fire 107 | 15 41 51 Melee . | . . . Ram . | . . . Kick . | . . . Crush . | . . . Escape Stasis . | . . . Rewire . | . . . Trap . | . . . Miscellaneous . | . . . Route ------- -11/Scrapyard -10/Materials (discovered 5 exits: [*Mat x2] / [*Min x2] / *Sub) -10/Subcaves (discovered 3 exits: [*Mat x2] / *Rec) History --------- Turn | Location | Event 7 | -11/Scrapyard | Discovered new exit (range 15) 167 | -11/Scrapyard | Entered Materials 167 | -10/Materials | Discovered new exit (range 8) 301 | -10/Materials | Build established: Mutant 593 | -10/Materials | Discovered new exit (range 14) 710 | -10/Materials | Discovered new exit (range 16) 1014 | -10/Materials | Discovered new exit (range 16) 1109 | -10/Materials | Discovered new exit (range 6) 1120 | -10/Materials | Entered Subcaves 1507 | -10/Subcaves | Core integrity fell below 50% 1530 | -10/Subcaves | A Subdweller sparked back to life 1533 | -10/Subcaves | Lost 3 parts (2n1w) 1625 | -10/Subcaves | Found Prototype Device 1625 | -10/Subcaves | Identified Power Bank 1626 | -10/Subcaves | Attached Power Bank, gained temporary slots: Power x3 1634 | -10/Subcaves | Discovered new exit (range 5) 1713 | -10/Subcaves | Discovered new exit (range 15) 1714 | -10/Subcaves | Shifting Twisted Machinery released Sub. Power Source 1893 | -10/Subcaves | Shifting Twisted Machinery released Sub. Beam Cannon 2058 | -10/Subcaves | Build established: Scavenger-Mutant 2228 | -10/Subcaves | Learned location of Zion (-6) 2228 | -10/Subcaves | Met a Zionite searching for "candidates" 2597 | -10/Subcaves | Build established: Mutant 2816 | -10/Subcaves | Shifting Twisted Machinery released Sub. Monowheel 2847 | -10/Subcaves | Shifting Twisted Machinery released Battle Rifle 2948 | -10/Subcaves | Visited Clippyterm 2955 | -10/Subcaves | Identified exit to Recycling 2955 | -10/Subcaves | Learned Factory garrison access intel 3075 | -10/Subcaves | Core integrity fell below 20% 3128 | -10/Subcaves | Visited 4L-MR0's lab 3141 | -10/Subcaves | Found Prototype Special Melee Weapon 3243 | -10/Subcaves | Destroyed by Autobeam Turret with Autobeam Last Messages --------------- Logs... 03137_ 4L-MR0 mumbles: "I'm surprised some of them are even willing to come in here given their fear of my usual visitors." 03138_ Dropped Broken Sub. Power Source. 03139_ Dropped Lgt. Armor Plating. 03139_ Dropped Sub. Monowheel. 03140_ Dropped Aluminum Leg. 03140_ Dropped Seismic Detector. 03141_ Acquired Prototype Special Melee Weapon. 03148_ 4L-MR0 mumbles: "Who knows where that last prototype ended up, probably tossed aside somewhere as if it were useless junk..." 03169_ Discarded Power Bank. 03170_ Temporary Power slot lost. 03171_ Acquired 10 matter. 03198_ Acquired Lgt. Armor Plating. 03239_ Spk. Treads destroyed. 03243_ Destroyed Autobeam. 03243_ Autobeam Turret destroyed. Map ----- +----------------------------------------------------+ | ?????????????????????????????????????# # # ## ## | | ?????????????????????????????????###?# ###### # | | ????????????????????????????????## ### ##??## | | ????????????????????????????????# #??## | | ????????????????????????????????# ##?## # | | ????????????????????????????????###### ##?##" # | | ????????????????????????????????????# ###?## ### | | ????????????????????????????????????## #?## ##?? | | ?????????????????????????????????????# ##?# ##??? | | ????????????????????????????????????## #??# ##??? | | ????????????????????????????????????# ##?# #??? | | ????????????????????????#####???????## #?# ###?? | | ???????????????########## ##??????# # #?# #?? | | ???????????????#=" =""##""""#??????# ## ####?? | | ???????????????###*=! #"""""#??????## ### #?????? | | ???????????????#"""X" + " "#???????## &#?#????? | | ???????????????#"""""""#" " #???????# |# ## #???? | | ####???????????##########"" #???????## ## ####?? | | #???????????????????## " #????????##### # ### | | ##?###????????#######"" " #????????????## | | ### ####?????# # ""##?????????????# | | #####??## #??????????????## # # | | #??# %##^ ##???????????????### | | ## ####<% <#####?????????????????## # | | ##### ## < ### #####???????????# # | | #???## ### @ #??????????## | | ????## ## ## % ""??### | | ??### ### ##### >?# | | ??# ## ##???# t""??## | | ??## ## ##????# ## # "???## | | ???#### ### ##????# ##? ##?? ?????## | | ???????##?####???? #?? ##?????"?????## | | ?????????????????# ## #??? ###????????????# | | ?????????????????## #?###???##??????????????# # | | ??????????????????##????????????????????????## # | | ?????????????????????????????????????????????# # | | ?????????????????????????????????????????????# ## | | ?????????????????????????????????????????????# ##? | | ?????????????????????????????????????????????###?? | | ?????????????????????????????????????????????????? | | ?????????????????????????????????????????????????? | | ?????????????????????????????????????????????????? | | ?????????????????????????????????????????????????? | | ?????????????????????????????????????????????????? | | ?????????????????????????????????????????????????? | | ?????????????????????????????????????????????????? | | ?????????????????????????????????????????????????? | | ?????????????????????????????????????????????????? | | ?????????????????????????????????????????????????? | | ?????????????????????????????????????????????????? | +----------------------------------------------------+ Best States ------------- Heat Dissipation 25 Energy Generation 24 Energy Capacity 260 Matter Stores 300 Matter Capacity 300 Sight Range 16 Terrain Scan Density 10 Armor Coverage 225 Evasion (%) 40 Recoil Reduction 2 Item Schematics ----------------- None Robot Schematics ------------------ None Fabricated ------------ Nothing Repaired ---------- Nothing Studied --------- None Alien Tech Used ----------------- None Achievements -------------- None Challenges ------------ None Game ------ Seed AlphaAntimissileFlamer Manual? 0 Play Time 00:21:41 Cumulative 134.8 hours Start 2026.02.20 @ 13:45:57 End 2026.02.20 @ 17:04:06 Sessions 5 Manual Loads 0 Difficulty Rogue Special Mode None Game No. 148 Rogue 148 Adventurer 0 Explorer 0 Win Type - Total 4 Types 4/0/0/0/0/0/0/0/0/0 Lore% 69 Gallery% 53 Achievement% 42 Wizard Run 0 Options --------- Layout 1 ASCII 0 Keyboard 1 Movement Vi Keybinds 0 Fullscreen 2 Font 24/Terminus Map View 50x35 Zoom Use 0% Tactical HUD 1 Map Filters NONE Filters NONE Steam 1 RUN: 4458e80d-a8b2-4570-b763-d5f6e322b7e1